Cogmind - Beta 14 @@@ ROGUE MODE // 2024.10.15 @ 21:27:19 Player: Kate+Gabe4evr Result: Destroyed by Y-64 Sentinel with KE Penetrator Performance ------------- Evolutions (1) 500 Regions Visited (5) 1000 Robots Destroyed (19) 95 Value Destroyed (611) 611 Prototype IDs (3) 60 Alien Tech Used (0) 0 Bonus (886) 886 TOTAL SCORE: 3152 Bonus ------- Follower Combat Kills 317 Met Imprinter 300 Was Imprinted 300 Friendly Fire -31 Cogmind --------- Core Integrity 0/400 Matter 258/300 Energy 98/100 System Corruption 2% Temperature Cool (9) Movement Core (150) Ox2 Location -6/Proximity Caves Parts ------- > --- POWER (1) -------- (None) > --- PROPULSION (4) --- (None) > --- UTILITY (2) ------ Makeshift Transmission Jammer > --- WEAPON (2) ------- Makeshift Shrapnel Gun > --- INVENTORY (5) ---- Aluminum Leg Experimental Sensor Array Light Armor Plating Plasma Cutter Peak State ------------ > --- POWER ------------ Light Antimatter Reactor > --- PROPULSION ------- Aluminum Leg Aluminum Leg Carbon-fiber Leg Carbon-fiber Leg > --- UTILITY ---------- Small Storage Unit > --- WEAPON ----------- Improved EM Shotgun Improved Medium Laser > --- INVENTORY -------- Light Nuclear Core Experimental Sensor Array Light Armor Plating Small Laser Improved Medium Laser Light Assault Rifle Makeshift Shrapnel Gun Plasma Cutter [Rating: 24] Favorites ----------- Power Light Nuclear Core Engine Light Ion Engine Power Core Light Nuclear Core Reactor Light Antimatter Reactor Propulsion Aluminum Leg Leg Aluminum Leg Utility Small Storage Unit Device Heat Sink Storage Small Storage Unit Protection Light Armor Plating Weapon Improved Medium Laser Energy Gun Improved Medium Laser Ballistic Gun Assault Rifle Build | -11 -10 -9 -9 -7 -6 ------- Run | Yrd Mat Mat Min Zio Pro Slots Evolved 2 | . . 2 . . . Power . | . . . . . . Propulsion 2 | . . 2 . . . Utility . | . . . . . . Weapon . | . . . . . . Parts Attached 28 | 6 3 7 4 . 8 Power 6 | 1 1 1 1 . 2 Engine 3 | 1 1 1 . . . Core 2 | . . . 1 . 1 Reactor 1 | . . . . . 1 Propulsion 10 | 2 1 2 2 . 3 Treads . | . . . . . . Leg 10 | 2 1 2 2 . 3 Wheel . | . . . . . . Hover . | . . . . . . Flight . | . . . . . . Utility 6 | 1 1 1 1 . 2 Device 4 | . 1 . 1 . 2 Storage 1 | 1 . . . . . Processor . | . . . . . . Hackware . | . . . . . . Protection 1 | . . 1 . . . Artifact . | . . . . . . Weapon 6 | 2 . 3 . . 1 Energy Gun 4 | 1 . 3 . . . Energy Cannon . | . . . . . . Ballistic Gun 2 | 1 . . . . 1 Ballistic Cannon . | . . . . . . Launcher . | . . . . . . Special Weapon . | . . . . . . Impact Weapon . | . . . . . . Slashing Weapon . | . . . . . . Piercing Weapon . | . . . . . . Special Melee Weapon . | . . . . . . Unidentified Prototypes 3 | . . 2 1 . . Corrupted Parts 2 | . . . 1 . 1 System Corruption 4 | . . . 2 . 2 Parts Lost 7 | . 2 . . . 5 Power 3 | . 2 . . . 1 Propulsion 1 | . . . . . 1 Utility 1 | . . . . . 1 Weapon 2 | . . . . . 2 Highest Loss Streak 3 | . 1 . . . 3 To Critical Strikes . | . . . . . . Average Slot Usage (%) 87 | . 87 89 94 88 68 Engine 4 | . 8 11 7 . . Core 5 | . . . 3 11 3 Leg 38 | . 28 34 44 44 31 Device 3 | . 8 9 1 . 2 Storage 11 | . 14 11 11 11 8 Protection 1 | . . 1 5 . . Energy Gun 19 | . 14 18 22 22 16 Ballistic Gun 2 | . 14 3 . . . Peak Build Rating 24 | 6 7 13 22 16 24 Average Rating 13 | 3 6 10 14 16 18 On Entrance 9 | . 6 6 13 16 16 Naked Turns 21 | . . . . . 21 Heaviest Build 23 | 11 14 17 17 16 23 Greatest Support 50 | 20 20 40 40 40 50 Greatest Overweight (x) 6 | 1 . . . . 6 Average Overweight (x) . | . . . . . . Largest Inventory Capacity 8 | 8 8 8 8 8 8 Average Capacity 7 | 6 8 8 8 8 7 Most Carried 8 | 2 3 5 8 8 8 Average Carried 5 | . 2 2 5 8 7 Final Capacity 8 | 8 8 8 8 8 5 Final Carried 8 | 2 3 5 8 8 4 Class Distribution -------------------- 53% | Scavenger-Mutant 46% | Mutant Dominant Class ---------------- Mutant | -10/Materials Mutant | -9/Materials Mutant | -9/Mines Scavenger-Mutant | -7/Zion Scavenger-Mutant | -6/Proximity Caves Resources | -11 -10 -9 -9 -7 -6 ----------- Run | Yrd Mat Mat Min Zio Pro Matter Collected 535 | 255 100 70 40 . 70 Remotely . | . . . . . . Salvage Created 757 | . 233 257 114 . 153 Parts 43 | . 20 10 8 . 5 Haulers Intercepted 1 | . . 1 . . . Recyclers Shooed 1 | . . . 1 . . Parts Field Recycled . | . . . . . . Retrieved Matter . | . . . . . . Parts Self-Destructed 19 | . . . . . 19 Prevented 4 | . . . . . 4 Kills | -11 -10 -9 -9 -7 -6 ------- Run | Yrd Mat Mat Min Zio Pro Combat Hostiles Destroyed 17 | . 8 4 2 . 3 Guns 17 | . 8 4 2 . 3 Classes Destroyed 6 | . 2 2 1 . 1 Builder 1 | . . . 1 . . Hauler 1 | . . 1 . . . Swarmer 3 | . 3 . . . . Grunt 10 | . 5 3 2 . . Duelist 3 | . . . . . 3 Sentry 1 | . . 1 . . . Best Kill Streak 5 | . 5 3 3 . 2 Combat Bots Only 5 | . 5 2 2 . 2 Max Kills in Single Turn 1 | . 1 1 1 . 1 Gunslinging . | . . . . . . Exploded . | . . . . . . Melee . | . . . . . . Uniques/NPCs Destroyed . | . . . . . . Combat | -11 -10 -9 -9 -7 -6 -------- Run | Yrd Mat Mat Min Zio Pro Hostile Shots Fired 108 | . 44 12 10 . 42 Missed 27 | . 14 4 3 . 6 Damage Taken 1599 | . 494 104 95 . 906 Core 552 | . 143 . 22 . 387 Absorbed by Shields . | . . . . . . Core Remaining (%) 71 | 100 42 . . . . Volleys Fired 63 | . 25 14 7 . 17 Largest 2 | . 2 2 2 . 2 Hottest 112 | . 60 112 101 . 101 Shots Fired 114 | . 50 28 14 . 22 Gun 114 | . 50 28 14 . 22 Cannon . | . . . . . . Launcher . | . . . . . . Special . | . . . . . . Kinetic 32 | . 25 . . . 7 Thermal 64 | . 25 22 7 . 10 Explosive . | . . . . . . Electromagnetic 18 | . . 6 7 . 5 Robot Hit Streak 13 | . 13 6 4 . 8 Robot Miss Streak 6 | . 3 2 2 . 6 Penetration Max . | . . . . . . Secondary Targets . | . . . . . . Shots Hit Robots 77 | . 33 21 8 . 15 Core Hits 36 | . 14 9 6 . 7 Critical Kills . | . . . . . . Critical Parts Destroyed . | . . . . . . Critical Strikes 4 | . . 2 . . 2 Burn 4 | . . 2 . . 2 Melee Attacks . | . . . . . . Impact . | . . . . . . Slashing . | . . . . . . Piercing . | . . . . . . Sneak Attacks . | . . . . . . Combat Hostiles . | . . . . . . Follow-up Attacks . | . . . . . . Damage Inflicted 1186 | . 396 342 137 . 311 Guns 1186 | . 396 342 137 . 311 Cannons . | . . . . . . Explosions . | . . . . . . Melee . | . . . . . . Ramming . | . . . . . . Kinetic 332 | . 203 . . . 129 Thermal 599 | . 193 250 33 . 123 Explosive . | . . . . . . Electromagnetic 255 | . . 92 104 . 59 Impact . | . . . . . . Slashing . | . . . . . . Piercing . | . . . . . . Highest Corruption 2 | . . . 2 2 2 Average Corruption 2 | . . . 2 2 2 Corruption Purged . | . . . . . . Corruption Blocked . | . . . . . . Effects 4 | . . . 1 . 3 Matter Fused 2 | . . . . . 2 Energy Discharges 1 | . . . 1 . . Data Loss (minor) 1 | . . . . . 1 Overload Shots . | . . . . . . Overflow Damage . | . . . . . . Projectiles . | . . . . . . Explosions . | . . . . . . Melee . | . . . . . . Knockbacks . | . . . . . . Impact . | . . . . . . Kinetic . | . . . . . . Secondary . | . . . . . . Self-Inflicted Damage . | . . . . . . Shots . | . . . . . . Rammed . | . . . . . . Targets Rammed . | . . . . . . Kicked . | . . . . . . Crushed . | . . . . . . Highest Temperature 225 | . 36 108 225 . 180 Average Temperature 55 | . 18 37 103 . 52 Received Heat Transfer 318 | . 120 63 54 . 81 Siege Activations . | . . . . . . Robots Corrupted . | . . . . . . Combat Hostiles . | . . . . . . Parts Fried . | . . . . . . Impact Corruptions . | . . . . . . Robots Melted . | . . . . . . Combat Hostiles . | . . . . . . Parts Melted 3 | . 2 1 . . . Heat Transferred 1634 | . 450 703 74 . 407 Parts Sabotaged . | . . . . . . Parts Stolen . | . . . . . . Parts Stripped . | . . . . . . Power Chain Reactions . | . . . . . . Alert | -11 -10 -9 -9 -7 -6 ------- Run | Yrd Mat Mat Min Zio Pro Peak Influence 234 | . 229 234 146 . . Initial 92 | . . 92 91 . . Average 120 | . 144 145 111 . . Maximum Alert Level 1 | . 1 1 . . . Low Security (%) 81 | 100 57 78 100 . . Level 1 18 | . 42 21 . . . Level 2 . | . . . . . . Level 3 . | . . . . . . Level 4 . | . . . . . . Level 5 . | . . . . . . High Security . | . . . . . . Max Security . | . . . . . . Squads Dispatched 3 | . 1 1 . . 1 Investigation 1 | . 1 . . . . Extermination . | . . . . . . Reinforcement 1 | . . 1 . . . Assault 1 | . . . . . 1 Garrison . | . . . . . . Intercept . | . . . . . . Searches Triggered . | . . . . . . Construction Impeded . | . . . . . . Haulers Reinforced . | . . . . . . Active Scanning Responses . | . . . . . . Cargo Convoy Interrupts . | . . . . . . Stealth | -11 -10 -9 -9 -7 -6 --------- Run | Yrd Mat Mat Min Zio Pro Distress Signals 3 | . 1 2 . . . Communications Jammed . | . . . . . . Distress Signals . | . . . . . . Times Spotted 37 | . 13 6 2 . 16 Peak Tracking Total 7 | . 7 4 2 . 7 Tactical Retreats 6 | . 1 2 . . 3 Traps | -11 -10 -9 -9 -7 -6 ------- Run | Yrd Mat Mat Min Zio Pro Traps Triggered 1 | . 1 . . . . Indirectly . | . . . . . . Trap Hack Attempts . | . . . . . . Triggered . | . . . . . . Disarmed . | . . . . . . Reprogrammed . | . . . . . . Reused . | . . . . . . Traps Extracted . | . . . . . . Installed . | . . . . . . Triggered . | . . . . . . Machines | -11 -10 -9 -9 -7 -6 ---------- Run | Yrd Mat Mat Min Zio Pro Machines Disabled . | . . . . . . Max in Single Turn . | . . . . . . Machines Repaired . | . . . . . . Machines Dismantled . | . . . . . . Machines Sabotaged . | . . . . . . Overloaded Fab Kills . | . . . . . . Hacking | -11 -10 -9 -9 -7 -6 --------- Run | Yrd Mat Mat Min Zio Pro Machines Accessed 4 | . 3 1 . . . Terminals 4 | . 3 1 . . . Fabricators . | . . . . . . Repair Stations . | . . . . . . Recycling Units . | . . . . . . Scanalyzers . | . . . . . . Garrison Access . | . . . . . . Total Hacks 11 | . 7 4 . . . Successful 5 | . 3 2 . . . Failed 6 | . 4 2 . . . Catastrophic 1 | . 1 . . . . Database Lockouts . | . . . . . . Manual 10 | . 6 4 . . . Terminals 11 | . 7 4 . . . Fabricators . | . . . . . . Repair Stations . | . . . . . . Recycling Units . | . . . . . . Scanalyzers . | . . . . . . Garrison Access . | . . . . . . Terminal Hacks 2 | . 1 1 . . . Emergency Access Points 1 | . 1 . . . . Terminal Index 1 | . . 1 . . . Fabricator Hacks . | . . . . . . Repair Station Hacks . | . . . . . . Recycling Unit Hacks . | . . . . . . Scanalyzer . | . . . . . . Garrison Access Hacks . | . . . . . . Unauthorized Hacks 3 | . 2 1 . . . Terminals 3 | . 2 1 . . . Botnet 3 | . 2 1 . . . Fabricators . | . . . . . . Repair Stations . | . . . . . . Recycling Units . | . . . . . . Scanalyzers . | . . . . . . Garrison Access . | . . . . . . Data Cores Recovered . | . . . . . . Used . | . . . . . . Hacking Detections 2 | . 1 1 . . . Full Trace Events . | . . . . . . Feedback Events . | . . . . . . Feedback Blocked . | . . . . . . Robot Schematics Acquired . | . . . . . . Robots Built . | . . . . . . Authchips . | . . . . . . Time . | . . . . . . Total Robot Build Rating . | . . . . . . Part Schematics Acquired . | . . . . . . Parts Built . | . . . . . . Authchips . | . . . . . . Time . | . . . . . . Total Part Build Rating . | . . . . . . Parts Repaired . | . . . . . . Time . | . . . . . . Parts Recycled . | . . . . . . Recycled Matter . | . . . . . . Retrieved Matter . | . . . . . . Retrieved Components . | . . . . . . Parts Scanalyzed . | . . . . . . Part Schematics Acquired . | . . . . . . Parts Damaged . | . . . . . . Bothacking | -11 -10 -9 -9 -7 -6 ------------ Run | Yrd Mat Mat Min Zio Pro Used RIF Installer . | . . . . . . Robots Hacked . | . . . . . . Non-combat . | . . . . . . Combat . | . . . . . . Robot Hacks Applied . | . . . . . . Relay Couplers Released . | . . . . . . Fabnet Peak Effective % . | . . . . . . Robots Rewired 2 | . . . . . 2 Allies Hacked . | . . . . . . Hacks Repelled . | . . . . . . Allies | -11 -10 -9 -9 -7 -6 -------- Run | Yrd Mat Mat Min Zio Pro Total Allies 10 | . . . . 8 2 Largest Group 8 | . . . . 8 8 Highest-Rated Group 254 | . . . . 254 254 Highest-Rated Ally 51 | . . . . 51 51 Total Orders . | . . . . . . Ally Attacks 62 | . . . . . 62 Total Damage 1389 | . . . . . 1389 Kills 12 | . . . . . 12 Allies Corrupted . | . . . . . . Allies Melted . | . . . . . . Intel | -11 -10 -9 -9 -7 -6 ------- Run | Yrd Mat Mat Min Zio Pro Robot Analysis Total . | . . . . . . Derelict Logs Recovered 2 | . . . 1 1 . Drone Launches . | . . . . . . Drone Recoveries . | . . . . . . Exploration | -11 -10 -9 -9 -7 -6 ------------- Run | Yrd Mat Mat Min Zio Pro Turns Passed 1826 | 84 281 253 308 688 212 Spaces Moved 1195 | 84 161 118 183 529 120 Core 81 | 45 . . . . 36 Treads . | . . . . . . Legs 1114 | 39 161 118 183 529 84 Wheels . | . . . . . . Hover . | . . . . . . Flight . | . . . . . . Fastest Speed 50 | 50 120 120 120 120 50 Average Speed 116 | 87 120 120 120 120 109 Slowest Speed 350 | 190 120 120 120 120 350 Overloaded Moves . | . . . . . . Propulsion Burnouts . | . . . . . . Robots Hopped . | . . . . . . Cave-ins Triggered . | . . . . . . Exploration Rate (%) 29 | 3 32 12 48 64 16 Regions Visited 5 Branch Regions 3 Pre-discovered Areas 2 | . . . 1 1 . Known Exits Taken . | . . . . . . Unknown Exits Taken 5 | 1 1 1 1 1 . Scrap Searched 4 | . . . 1 2 1 Spaces Dug . | . . . . . . Terrain Destroyed . | . . . . . . Melee . | . . . . . . Projectile . | . . . . . . AOE . | . . . . . . Terrain Rammed . | . . . . . . Walls Destroyed . | . . . . . . Machines Disabled . | . . . . . . Actions | -11 -10 -9 -9 -7 -6 --------- Run | Yrd Mat Mat Min Zio Pro Total 1509 | 91 197 200 259 582 180 Wait 199 | . 9 56 60 54 20 Move 1190 | 83 160 117 182 528 120 Hop . | . . . . . . Pick Up 9 | 2 . 3 1 . 3 Fast Attach 18 | 6 2 3 1 . 6 Attach 3 | . . 2 . . 1 Detach 4 | . . 2 2 . . Swap 7 | . 1 2 3 . 1 Drop 11 | . . 1 3 . 7 Fire 63 | . 25 14 7 . 17 Melee . | . . . . . . Ram . | . . . . . . Kick . | . . . . . . Crush . | . . . . . . Escape Stasis . | . . . . . . Rewire 5 | . . . . . 5 Trap . | . . . . . . Miscellaneous . | . . . . . . Route ------- -11/Scrapyard -10/Materials -9/Materials -9/Mines -7/Zion -6/Proximity Caves History --------- Turn | Location | Event 4 | -11/Scrapyard | Discovered new exit (range 15) 85 | -11/Scrapyard | Entered Materials 263 | -10/Materials | Core integrity fell below 50% 283 | -10/Materials | Discovered new exit (range 10) 306 | -10/Materials | Build established: Mutant 366 | -10/Materials | Entered another Materials area 366 | -9/Materials | Evolved 2 slots: Propulsion x2 614 | -9/Materials | Discovered new exit (range 5) 619 | -9/Materials | Entered Mines 621 | -9/Mines | Met a Derelict bent on vengeance 716 | -9/Mines | Learned location of Zion (-7) 721 | -9/Mines | A weapon hastily lodged in a ceiling crevice suddenly fell to the ground 765 | -9/Mines | Found a damaged Exp. Sensor Array with a note attached 768 | -9/Mines | Found Prototype Device 768 | -9/Mines | Identified Exp. Sensor Array 925 | -9/Mines | A Derelict revealed a hidden shortcut to a safe place 927 | -9/Mines | Entered Zion 967 | -7/Zion | System corruption cleaned by Quarantine Array 1047 | -7/Zion | Gained Derelict followers 1118 | -7/Zion | Build established: Scavenger-Mutant 1171 | -7/Zion | Met Imprinter 1191 | -7/Zion | Imprinted 1193 | -7/Zion | Declared Zion's savior 1375 | -7/Zion | Learned location of Extension (-4) 1550 | -7/Zion | Discovered new exit (range 8) 1615 | -7/Zion | Entered Proximity Caves 1615 | -6/Proximity Caves | Accompanied by 8 allies 1668 | -6/Proximity Caves | Lost 3 allies 1740 | -6/Proximity Caves | Attracted the attention of an 0b10 outpost 1779 | -6/Proximity Caves | Core integrity fell below 50% 1783 | -6/Proximity Caves | Lost 5 allies 1806 | -6/Proximity Caves | Lost 3 parts (1n2w) 1820 | -6/Proximity Caves | Core integrity fell below 20% 1827 | -6/Proximity Caves | Destroyed by Y-64 Sentinel with KE Penetrator Last Messages --------------- 01796_ Found Adv. Sensor Array. 01796_ Found Imp. Field Recycling Unit. 01796_ Found 60 Matter. 01797_ Acquired Adv. Sensor Array. 01798_ Guardian 5a Lgt. Treads severed. 01800_ Acquired Mak. Transmission Jammer. 01801_ System corrupted: Component data lost. 01803_ Acquired 20 matter. 01805_ Acquired Neutrino Core. 01806_ Acquired 10 matter. 01816_ Adv. Sensor Array destroyed. 01818_ L-41 Fighter destroyed. 01819_ Penetrated by Slug. 01820_ L-41 Fighter destroyed. 01822_ Penetrated by Slug. 01824_ System corrupted: Matter fused (-7). 01825_ Neutrino Core destroyed. 01825_ Penetrated by Slug. 01825_ Machine disabled. 01827_ Penetrated by Slug. Map ----- +----------------------------------------------------+ | ?????????????????????????????????????????????????? | | ?????????????????????????????????????????????????? | | ?????????????????????????????????????????????????? | | ?????????????????????????????????????????????????? | | ?????????????????????????????????????????????????? | | ?????????????????????????????????????????????????? | | ?????????????????????????????????????????????????? | | ?????????????????????????????????????????????????? | | ?????????????????????????????????????????????????? | | ?????????????????????????????????????????????????? | | ?????????????????????????????????????????????????? | | ?????????????????????????????????????????????????? | | ?????????????????????????????????????????????????? | | ?????????????????????????????????????????????????? | | ?????????????????????????????????????????????????? | | ?????????????????????????????????????????????????? | | ?????????????????????????????????????????????????? | | ?????????????????????????##??????????????????????? | | ????????????????????????? ??????????????????????? | | ????????????????????????? #??????????????????????? | | ??????????? ?????#?????## ???????????????????????? | | ????????? ?????# ????# ???????????????????????? | | ????????? #?????# ???# ########????????????????? | | ???? ? ##???# ### #" """"#????????????????? | | ??? ?? ##?# %#%!! #????????????????? | | ??? ?# ?# @=%% #????????????????? | | ??? ## ??######Y###!+###????????????????? | | ????# ?????### " ! #????????????????? | | ?????# ?????# ; " #????????????????? | | ?????# ?????##;%"#= ## #??????????????? | | ??????# #??????#" #??????????????? | | ?????# ##????##% "#### #??????????????? | | # #### #????# !* #??? #?????????????? | | # ###### %!% ##?? #????????????? | | # [! = #?? ####????????????? | | ???????# **== % ##? #???????????????? | | ?????#?#" !=##### %! ## #???????????????? | | ?????# #### "/%#???## * # #???????????????? | | ??# ## #### #==#????#"= # #???????????????? | | ??# # #????##*|= #? #???????????????? | | ##???# # #????##%=! ##? ???????????????? | | ##???### ##???#[*%! #?? ???????????????? | | [*###???# ##### !!! ##??#????????????????? | | [ ##### !%= ##????????????????????? | | % ### =!###?????????????????????? | | "# ##?## ########"#???????????????????????? | | #" ########???###???????##???????????????????????? | | ####?????????????????????????????????????????????? | | ?????????????????????????????????????????????????? | | ?????????????????????????????????????????????????? | +----------------------------------------------------+ Best States ------------- Heat Dissipation 38 Energy Generation 21 Energy Capacity 315 Matter Stores 300 Matter Capacity 300 Sight Range 16 Robot Scan Range 20 Terrain Scan Density 10 Jamming Range 14 Armor Coverage 150 Evasion (%) 55 Item Schematics ----------------- None Robot Schematics ------------------ None Fabricated ------------ Nothing Alien Tech Used ----------------- None Achievements -------------- None Challenges ------------ None Game ------ Seed ProtonTransmissionRedirector Manual? 0 Play Time 00:14:47 Cumulative 35.9 hours Start 2024.10.15 @ 21:11:01 End 2024.10.15 @ 21:27:19 Sessions 1 Manual Loads 0 Difficulty Rogue Special Mode None Game No. 63 Rogue 63 Adventurer 0 Explorer 0 Win Type - Total 1 Types 1/0/0/0/0/0/0/0/0 Lore% 17 Gallery% 41 Achievement% 38 Wizard Run 0 Options --------- Layout 0 ASCII 0 Keyboard 1 Movement Numpad Keybinds 0 Fullscreen 2 Font 24/Terminus Map View 76x50 Zoom Use 0% Tactical HUD 1 Map Filters NONE Filters NONE Steam 1 RUN: 43d4f73b-6ef3-42bf-8295-1cee3172430c